fUST/lending_fUST_20240918
["ID","MTS","AMOUNT","RATE_DAILY","PERIOD"]
[338404753,1726593040067,-364.573978,0.00019178,2]
[338404754,1726593040076,-718.69,0.000192,2]
[338404755,1726593040086,-335.191265,0.000192,8]
[338404756,1726593040095,-150.0,0.00019543,2]
[338404757,1726593040106,-150.0,0.00019562,2]
[338404758,1726593040118,-524.0,0.00019562,2]
[338404759,1726593040128,-1076.0,0.00019562,2]
[338404760,1726593040137,-420.0,0.00019756,2]
[338404761,1726593040146,-150.0,0.00019815,2]
[338404762,1726593040156,-364.573978,0.00019863,2]
[338404763,1726593040166,-279.733,0.0001989,2]
[338404764,1726593040176,-153.0,0.000199,2]
[338404765,1726593040185,-420.0,0.00019919,2]
[338404766,1726593040194,-884.67838784,0.0002,30]
[338404767,1726593040204,-154.11553568,0.00020031,2]
[338404768,1726593040214,-570.53439858,0.00020096,2]
[338404769,1726593040224,-6073.64693811,0.00020097,2]
[338404770,1726593040234,-500.0,0.0002014,2]
[338404771,1726593040244,-1000.0,0.00020161,2]
[338404772,1726593040254,-83.66281481,0.000202,7]
[338404773,1726593040263,-500.0,0.000202,7]
[338404774,1726593040273,-500.0,0.000202,7]
[338404775,1726593040282,-500.0,0.000202,7]
[338404776,1726593040292,-500.0,0.000202,7]
[338404777,1726593040303,-500.0,0.000202,7]
[338404778,1726593040312,-500.0,0.000202,7]
[338404779,1726593040321,-500.0,0.000202,7]
[338404780,1726593040331,-500.0,0.000202,7]
[338404781,1726593040341,-500.0,0.000202,7]
[338404782,1726593040351,-500.0,0.000202,7]
[338404783,1726593040360,-500.0,0.000202,7]
[338404784,1726593040373,-500.0,0.000202,7]
[338404785,1726593040383,-500.0,0.000202,7]
[338404786,1726593040393,-500.0,0.000202,7]
[338404787,1726593040402,-500.0,0.000202,7]
[338404788,1726593040413,-500.0,0.000202,7]
[338404789,1726593040422,-500.0,0.000202,7]
[338404790,1726593040432,-500.0,0.000202,7]
[338404791,1726593040442,-277.16,0.000202,7]
[338404792,1726593040452,-300.0,0.000202,2]
[338404793,1726593040461,-3200.0,0.000202,2]
[338404794,1726593040471,-160.0,0.00020219,9]
[338404795,1726593040481,-174.890973,0.00020286,2]
[338404796,1726593040491,-1000.0,0.0002029,2]
[338404797,1726593040500,-5000.0,0.000203,2]
[338404798,1726593040510,-151.0,0.00020308,2]
[338404799,1726593040520,-500.0,0.00020311,10]
[338404800,1726593040529,-500.0,0.00020311,10]
[338404801,1726593040539,-500.0,0.00020311,10]
[338404803,1726593040550,-500.0,0.00020311,10]
[338404805,1726593040559,-500.0,0.00020311,10]
[338404806,1726593040569,-500.0,0.00020311,10]
[338404808,1726593040578,-500.0,0.00020311,10]
[338404810,1726593040588,-500.0,0.00020311,10]
[338404811,1726593040597,-800.0,0.00020311,10]
[338404812,1726593040607,-500.0,0.00020311,10]
[338404813,1726593040619,-500.0,0.00020311,10]
[338404814,1726593040629,-500.0,0.00020311,10]
[338404815,1726593040639,-500.0,0.00020311,10]
[338404816,1726593040648,-500.0,0.00020311,10]
[338404817,1726593040657,-500.0,0.00020311,10]
[338404818,1726593040667,-704.99849805,0.00020311,10]
[338404819,1726593040678,-500.0,0.00020311,10]
[338404821,1726593040688,-500.0,0.00020311,10]
[338404823,1726593040697,-500.0,0.00020311,10]
[338404824,1726593040708,-500.0,0.00020311,10]
[338404825,1726593040718,-500.0,0.00020311,10]
[338404826,1726593040728,-500.0,0.00020311,10]
[338404827,1726593040738,-500.0,0.00020311,10]
[338404828,1726593040747,-500.0,0.00020311,10]
[338404829,1726593040757,-500.0,0.00020311,10]
[338404830,1726593040766,-500.0,0.00020311,10]
[338404831,1726593040776,-500.0,0.00020311,10]
[338404832,1726593040786,-500.0,0.00020311,10]
[338404833,1726593040795,-500.0,0.00020311,10]
[338404834,1726593040805,-995.00150195,0.00020311,10]
[338404835,1726593040815,-600.0,0.00020352,2]
[338404836,1726593040825,-330.27,0.00020361,3]
[338404837,1726593040834,-165.14,0.00020361,3]
[338404838,1726593040844,-495.42,0.00020361,3]
[338404839,1726593040853,-500.0,0.0002037,2]
[338404840,1726593040863,-166.83818672,0.0002037,2]
[338404841,1726593040875,-285.41200224,0.0002037,2]
[338404842,1726593040884,-132627.701794,0.00020371,3]
[338404843,1726593040894,-1819.02515326,0.00020371,3]
[338404844,1726593040903,-500.0,0.00020373,2]
[338404845,1726593040913,-500.0,0.00020373,2]
[338404846,1726593040923,-500.0,0.00020373,2]
[338404847,1726593040932,-5505.32933434,0.00020379,3]
[338404863,1726593042937,-11279.03793694,0.00020379,3]
[338404864,1726593042953,-49529.48362562,0.00020379,3]
[338404865,1726593042963,-909.51257663,0.00020379,3]
[338404866,1726593042973,-61488.96212095,0.0002038,3]
[338404869,1726593042994,-18812.50000007,0.0002038,3]
[338404871,1726593043005,-8148.30365214,0.0002038,3]
[338404886,1726593045780,-745.1595877,0.0002038,3]
[338404889,1726593046675,-43432.77643314,0.0002038,3]
[338404890,1726593046684,-2728.53772989,0.0002038,3]
[338404891,1726593046694,-151.0,0.00020389,2]
[338404892,1726593046703,-151.0,0.00020389,2]
[338404893,1726593046713,-231.738854,0.00020389,2]
[338404894,1726593046723,-151.0,0.00020389,2]
[338404895,1726593046732,-151.0,0.00020389,2]
[338404896,1726593046742,-151.0,0.00020389,2]
[338404897,1726593046751,-151.0,0.00020389,2]
[338404898,1726593046760,-151.0,0.00020389,2]
[338404899,1726593046769,-164.272814,0.00020389,2]
[338404900,1726593046778,-164.272814,0.00020389,2]
[338404901,1726593046787,-164.272814,0.00020389,2]
[338404902,1726593046797,-164.272814,0.00020389,2]
[338404903,1726593046806,-151.0,0.00020389,2]
[338404904,1726593046815,-151.0,0.00020389,2]
[338404905,1726593046824,-151.0,0.00020389,2]
[338404906,1726593046833,-151.0,0.00020389,2]
[338404907,1726593046842,-151.0,0.00020389,2]
[338404908,1726593046851,-151.0,0.00020389,2]
[338404909,1726593046860,-151.0,0.00020389,2]
[338404910,1726593046870,-151.0,0.00020389,2]
[338404911,1726593046879,-267.6559,0.00020389,2]
[338404912,1726593046889,-267.6559,0.00020389,2]
[338404913,1726593046899,-267.6559,0.00020389,2]
[338404914,1726593046909,-267.6559,0.00020389,2]
[338404915,1726593046918,-151.0,0.00020389,2]
[338404916,1726593046928,-151.0,0.00020389,2]
[338404917,1726593046937,-151.0,0.00020389,2]
[338404918,1726593046946,-151.0,0.00020389,2]
[338404919,1726593046955,-151.0,0.00020389,2]
[338404920,1726593046964,-151.0,0.00020389,2]
[338404921,1726593046973,-151.0,0.00020389,2]
[338404922,1726593046983,-151.0,0.00020389,2]
[338404923,1726593046992,-413.329199,0.00020389,2]
[338404924,1726593047001,-413.329199,0.00020389,2]
[338404925,1726593047011,-413.329199,0.00020389,2]
[338404926,1726593047020,-413.329199,0.00020389,2]
[338404927,1726593047029,-151.0,0.00020389,2]
[338404928,1726593047041,-151.0,0.00020389,2]
[338404929,1726593047050,-151.0,0.0002039,2]
[338404930,1726593047059,-151.0,0.0002039,2]
[338404931,1726593047068,-151.0,0.0002039,2]
[338404932,1726593047079,-151.0,0.0002039,2]
[338404933,1726593047089,-151.0,0.0002039,2]
[338404934,1726593047099,-164.272814,0.0002039,2]
[338404935,1726593047108,-164.272814,0.0002039,2]
[338404936,1726593047120,-164.272814,0.0002039,2]
[338404937,1726593047129,-164.272814,0.0002039,2]
[338404938,1726593047138,-151.0,0.0002039,2]
[338404939,1726593047148,-151.0,0.0002039,2]
[338404940,1726593047157,-151.0,0.0002039,2]
[338404941,1726593047167,-151.0,0.0002039,2]
[338404942,1726593047177,-151.0,0.0002039,2]
[338404943,1726593047186,-168.337027,0.0002039,2]
[338404944,1726593047196,-151.0,0.0002039,2]
[338404945,1726593047205,-267.6559,0.0002039,2]
[338404946,1726593047214,-267.6559,0.0002039,2]
[338404947,1726593047224,-267.6559,0.0002039,2]
[338404948,1726593047233,-267.6559,0.0002039,2]
[338404949,1726593047242,-151.0,0.0002039,2]
[338404950,1726593047251,-151.0,0.0002039,2]
[338404951,1726593047260,-151.0,0.0002039,2]
[338404952,1726593047270,-151.0,0.0002039,2]
[338404953,1726593047279,-151.0,0.0002039,2]
[338404954,1726593047289,-151.0,0.0002039,2]
[338404955,1726593047299,-151.0,0.0002039,2]
[338404956,1726593047308,-181.731184,0.0002039,2]
[338404957,1726593047318,-413.329199,0.0002039,2]
[338404958,1726593047326,-413.329199,0.0002039,2]
[338404959,1726593047335,-413.329199,0.0002039,2]
[338404960,1726593047345,-413.329199,0.0002039,2]
[338404961,1726593047354,-151.0,0.0002039,2]
[338404962,1726593047363,-151.0,0.0002039,2]
[338404963,1726593047375,-2728.53772989,0.0002039,3]
[338404964,1726593047388,-150.112233,0.000204,4]
[338404965,1726593047398,-151.0,0.000204,2]
[338404966,1726593047407,-151.0,0.000204,2]
[338404967,1726593047416,-151.0,0.000204,2]
[338404968,1726593047610,-151.0,0.000204,2]
[338404969,1726593047621,-151.0,0.000204,2]
[338404970,1726593047631,-151.0,0.000204,2]
[338404971,1726593047640,-151.0,0.000204,2]
[338404972,1726593047649,-151.0,0.000204,2]
[338404973,1726593047659,-924.221121,0.000204,2]
[338404974,1726593047669,-924.221121,0.000204,2]
[338404975,1726593047678,-667.093243,0.000204,2]
[338404976,1726593047688,-151.0,0.000204,2]
[338404977,1726593047697,-667.093243,0.000204,2]
[338404978,1726593047706,-151.0,0.000204,2]
[338404979,1726593047716,-431.066242,0.000204,2]
[338404980,1726593047724,-431.066242,0.000204,2]
[338404981,1726593047734,-174.488292,0.000204,2]
[338404982,1726593047743,-151.0,0.000204,2]
[338404983,1726593047752,-270.372486,0.000204,2]
[338404984,1726593047762,-450.997894,0.000204,2]
[338404985,1726593047771,-450.997894,0.000204,2]
[338404986,1726593047780,-151.0,0.000204,2]
[338404987,1726593047789,-151.0,0.000204,2]
[338404988,1726593047798,-151.0,0.000204,2]
[338404989,1726593047808,-408.169889,0.000204,2]
[338404990,1726593047817,-164.272814,0.000204,2]
[338404991,1726593047826,-164.272814,0.000204,2]
[338404992,1726593047836,-164.272814,0.000204,2]
[338404993,1726593047845,-164.272814,0.000204,2]
[338404994,1726593047854,-164.272814,0.000204,2]
[338404995,1726593047864,-164.272814,0.000204,2]
[338404996,1726593047875,-151.0,0.000204,2]
[338404997,1726593047884,-151.0,0.000204,2]
[338404998,1726593047893,-151.0,0.000204,2]
[338404999,1726593047902,-151.0,0.000204,2]
[338405000,1726593047911,-151.0,0.000204,2]
[338405001,1726593047920,-213.953607,0.000204,2]
[338405002,1726593047929,-267.6559,0.000204,2]
[338405003,1726593047938,-267.6559,0.000204,2]
[338405004,1726593047947,-267.6559,0.000204,2]
[338405005,1726593047956,-267.6559,0.000204,2]
[338405006,1726593047965,-267.6559,0.000204,2]
[338405007,1726593047975,-267.6559,0.000204,2]
[338405008,1726593047984,-151.0,0.000204,2]
[338405009,1726593047993,-151.0,0.000204,2]
[338405010,1726593048002,-151.0,0.000204,2]
[338405011,1726593048011,-151.0,0.000204,2]
[338405012,1726593048020,-151.0,0.000204,2]
[338405013,1726593048030,-151.0,0.000204,2]
[338405014,1726593048042,-151.0,0.000204,2]
[338405015,1726593048052,-151.0,0.000204,2]
[338405016,1726593048061,-151.0,0.000204,2]
[338405017,1726593048071,-413.329199,0.000204,2]
[338405018,1726593048082,-413.329199,0.000204,2]
[338405019,1726593048093,-413.329199,0.000204,2]
[338405020,1726593048102,-413.329199,0.000204,2]
[338405021,1726593048114,-413.329199,0.000204,2]
[338405022,1726593048126,-413.329199,0.000204,2]
[338405023,1726593048136,-151.0,0.000204,2]
[338405024,1726593048146,-151.0,0.000204,2]
[338405025,1726593048156,-151.0,0.000204,2]
[338405026,1726593048166,-151.0,0.0002041,2]
[338405027,1726593048175,-151.0,0.0002041,2]
[338405028,1726593048185,-151.0,0.0002041,2]
[338405029,1726593048195,-151.0,0.0002041,2]
[338405030,1726593048205,-909.51257663,0.0002042,3]
[338405031,1726593048215,-155.558404,0.0002043,2]
[338405032,1726593048225,-164.272814,0.0002043,2]
[338405033,1726593048234,-909.51257663,0.0002043,3]
[338405034,1726593048243,-164.272814,0.0002043,2]
[338405035,1726593048252,-151.0,0.0002043,2]
[338405036,1726593048262,-267.6559,0.0002043,2]
[338405037,1726593048275,-267.6559,0.0002043,2]
[338405038,1726593048284,-151.0,0.0002043,2]
[338405039,1726593048293,-299.639834,0.0002043,2]
[338405040,1726593048303,-151.0,0.0002043,2]
[338405041,1726593048313,-413.329199,0.0002043,2]
[338405042,1726593048323,-413.329199,0.0002043,2]
[338405043,1726593048332,-151.0,0.0002043,2]
[338405044,1726593048341,-151.0,0.0002044,2]
[338405045,1726593048350,-151.0,0.0002044,2]
[338405046,1726593048360,-151.0,0.0002044,2]
[338405047,1726593048371,-151.0,0.0002044,2]
[338405048,1726593048381,-151.0,0.0002044,2]
[338405049,1726593048391,-151.0,0.0002044,2]
[338405050,1726593048401,-151.0,0.0002044,2]
[338405051,1726593048411,-185.129974,0.0002044,2]
[338405052,1726593048420,-151.0,0.0002044,2]
[338405053,1726593048430,-924.221121,0.0002044,2]
[338405054,1726593048440,-924.221121,0.0002044,2]
[338405055,1726593048450,-667.093243,0.0002044,2]
[338405056,1726593048459,-151.0,0.0002044,2]
[338405057,1726593048469,-667.093243,0.0002044,2]
[338405058,1726593048480,-151.0,0.0002044,2]
[338405059,1726593048489,-431.066242,0.0002044,2]
[338405060,1726593048499,-174.488292,0.0002044,2]
[338405061,1726593048508,-431.066242,0.0002044,2]
[338405062,1726593048517,-174.488292,0.0002044,2]
[338405063,1726593048526,-450.997894,0.0002044,2]
[338405064,1726593048535,-450.997894,0.0002044,2]
[338405065,1726593048545,-151.0,0.0002045,2]
[338405066,1726593048555,-151.0,0.0002045,2]
[338405067,1726593048564,-151.0,0.0002045,2]
[338405068,1726593048573,-151.0,0.0002045,2]
[338405069,1726593048583,-151.0,0.0002045,2]
[338405070,1726593048592,-151.0,0.0002045,2]
[338405071,1726593048602,-151.0,0.0002045,2]
[338405072,1726593048611,-151.860451,0.0002045,2]
[338405073,1726593048620,-151.0,0.0002045,2]
[338405074,1726593048630,-151.0,0.0002045,2]
[338405075,1726593048639,-151.0,0.0002045,2]
[338405076,1726593048649,-181.019866,0.0002045,2]
[338405077,1726593048659,-194.0,0.0002046,2]
[338405078,1726593048669,-151.0,0.0002049,2]
[338405079,1726593048678,-151.0,0.0002049,2]
[338405080,1726593048688,-151.0,0.0002049,2]
[338405081,1726593048697,-151.0,0.0002049,2]
[338405082,1726593048707,-151.0,0.0002049,2]
[338405083,1726593048716,-151.0,0.0002049,2]
[338405084,1726593048726,-151.0,0.0002049,2]
[338405085,1726593048735,-151.0,0.0002049,2]
[338405086,1726593048744,-151.0,0.0002049,2]
[338405087,1726593048754,-151.0,0.0002049,2]
[338405088,1726593048763,-151.0,0.0002049,2]
[338405089,1726593048772,-151.0,0.0002049,2]
[338405090,1726593048781,-151.0,0.0002049,2]
[338405091,1726593048791,-151.0,0.0002049,2]
[338405092,1726593048800,-154.88231,0.0002049,2]
[338405093,1726593048809,-924.221121,0.0002049,2]
[338405094,1726593048819,-924.221121,0.0002049,2]
[338405095,1726593048829,-924.221121,0.0002049,2]
[338405096,1726593048838,-924.221121,0.0002049,2]
[338405097,1726593048849,-667.093243,0.0002049,2]
[338405098,1726593048858,-667.093243,0.0002049,2]
[338405099,1726593048868,-151.0,0.0002049,2]
[338405100,1726593048879,-151.0,0.0002049,2]
[338405101,1726593048890,-667.093243,0.0002049,2]
[338405102,1726593048901,-667.093243,0.0002049,2]
[338405103,1726593048910,-151.0,0.0002049,2]
[338405104,1726593048921,-190.031074,0.0002049,2]
[338405105,1726593048931,-431.066242,0.0002049,2]
[338405106,1726593048941,-174.488292,0.0002049,2]
[338405107,1726593048951,-431.066242,0.0002049,2]
[338405108,1726593048962,-174.488292,0.0002049,2]
[338405109,1726593048972,-431.066242,0.0002049,2]
[338405110,1726593048982,-174.488292,0.0002049,2]
[338405111,1726593048991,-431.066242,0.0002049,2]
[338405112,1726593049000,-174.488292,0.0002049,2]
[338405113,1726593049010,-450.997894,0.0002049,2]
[338405114,1726593049020,-450.997894,0.0002049,2]
[338405115,1726593049031,-450.997894,0.0002049,2]
[338405116,1726593049046,-450.997894,0.0002049,2]
[338405117,1726593049056,-12253.72,0.000205,18]
[338405118,1726593049066,-150.112233,0.000205,4]
[338405119,1726593049076,-151.0,0.000205,2]
[338405120,1726593049085,-151.0,0.000205,2]
[338405121,1726593049095,-151.0,0.000205,2]
[338405122,1726593049104,-151.0,0.000205,2]
[338405123,1726593049114,-151.0,0.000205,2]
[338405124,1726593049124,-151.0,0.000205,2]
[338405125,1726593049134,-151.0,0.000205,2]
[338405126,1726593049143,-151.0,0.000205,2]
[338405127,1726593049152,-909.51257663,0.000205,3]
[338405128,1726593049162,-500.0,0.0002051,30]
[338405129,1726593049171,-500.0,0.0002051,30]
[338405130,1726593049180,-500.0,0.0002051,30]
[338405131,1726593049190,-500.0,0.0002051,30]
[338405132,1726593049201,-500.0,0.0002051,30]
[338405133,1726593049211,-500.0,0.0002051,30]
[338405134,1726593049221,-500.0,0.0002051,30]
[338405135,1726593049231,-500.0,0.0002051,30]
[338405136,1726593049242,-500.0,0.0002051,30]
[338405137,1726593049253,-500.0,0.0002051,30]
[338405138,1726593049262,-500.0,0.0002051,30]
[338405139,1726593049272,-500.0,0.0002051,30]
[338405140,1726593049281,-500.0,0.0002051,30]
[338405141,1726593049290,-500.0,0.0002051,30]
[338405142,1726593049300,-500.0,0.0002051,30]
[338405143,1726593049309,-500.0,0.0002051,30]
[338405144,1726593049319,-500.0,0.0002051,30]
[338405145,1726593049328,-500.0,0.0002051,30]
[338405146,1726593049337,-500.0,0.0002051,30]
[338405147,1726593049346,-500.0,0.0002051,30]
[338405148,1726593049356,-500.0,0.0002051,30]
[338405149,1726593049365,-500.0,0.0002051,30]
[338405150,1726593049375,-500.0,0.0002051,30]
[338405151,1726593049384,-500.0,0.0002051,30]
[338405152,1726593049393,-500.0,0.0002051,30]
[338405153,1726593049404,-500.0,0.0002051,30]
[338405154,1726593049414,-500.0,0.0002051,30]
[338405155,1726593049423,-500.0,0.0002051,30]
[338405156,1726593049432,-500.0,0.0002051,30]
[338405157,1726593049441,-500.0,0.0002051,30]
[338405158,1726593049451,-500.0,0.0002051,30]
[338405159,1726593049460,-500.0,0.0002051,30]
[338405160,1726593049469,-174.890973,0.00020531,2]
[338405161,1726593049479,-186.164427,0.00020531,2]
[338405162,1726593049488,-151.0,0.00020531,2]
[338405163,1726593049498,-364.573978,0.00020548,2]
[338405164,1726593049508,-160.0,0.00020556,10]
[338405165,1726593049517,-164.272814,0.00020564,2]
[338405166,1726593049526,-164.272814,0.00020564,2]
[338405167,1726593049536,-600.0,0.00020564,2]
[338405168,1726593049545,-150.112233,0.000206,4]
[338405169,1726593049554,-500.0,0.0002064,2]
[338405170,1726593049564,-500.0,0.00020673,2]
[338405171,1726593049573,-500.0,0.00020673,2]
[338405172,1726593049583,-909.51257663,0.0002069,3]
[338405173,1726593049592,-151.0,0.0002069,2]
[338405174,1726593049601,-151.0,0.0002069,2]
[338405175,1726593049611,-151.0,0.0002069,2]
[338405176,1726593049621,-151.0,0.0002069,2]
[338405177,1726593049630,-188.656541,0.0002069,2]
[338405178,1726593049639,-151.0,0.0002069,2]
[338405179,1726593049649,-151.0,0.0002069,2]
[338405180,1726593049659,-151.0,0.0002069,2]
[338405181,1726593049668,-151.0,0.0002069,2]
[338405182,1726593049678,-270.49172,0.0002069,2]
[338405183,1726593049687,-151.0,0.0002069,2]
[338405184,1726593049697,-623.15048184,0.0002069,2]
[338405185,1726593050145,-301.07063916,0.0002069,2]
[338405186,1726593050155,-924.221121,0.0002069,2]
[338405187,1726593050165,-667.093243,0.0002069,2]
[338405188,1726593050174,-151.0,0.0002069,2]
[338405189,1726593050184,-667.093243,0.0002069,2]
[338405190,1726593050193,-174.488292,0.0002069,2]
[338405191,1726593050202,-431.066242,0.0002069,2]
[338405192,1726593050211,-431.066242,0.0002069,2]
[338405193,1726593050221,-174.488292,0.0002069,2]
[338405194,1726593050230,-308.61953289,0.0002069,2]
[338405248,1726593721491,177.50782868,0.0002051,120]
[338405255,1726594004277,-211.64895881,0.00018306,2]
[338405373,1726594237997,-229.7966479,0.00017397,2]
[338405374,1726594238008,-24900.0,0.00017397,2]
[338405375,1726594238019,-300.0,0.00018306,2]
[338405376,1726594238031,-300.0,0.00018306,2]
[338405377,1726594238042,-160.0,0.00018703,3]
[338405378,1726594238052,-2276.530074,0.00018786,2]
[338405379,1726594238063,-200.6731,0.00019178,2]
[338405380,1726594238075,-646.83,0.000193,2]
[338405381,1726594238086,-160.0,0.00019546,4]
[338405382,1726594238097,-859.620428,0.0001957,2]
[338405383,1726594238110,-2448.79782289,0.00019735,2]
[338405384,1726594238121,-3523.64,0.00019782,2]
[338405385,1726594238130,-431.86,0.00019782,2]
[338405386,1726594238139,-150.0,0.00019835,2]
[338405387,1726594238148,-524.0,0.00019835,2]
[338405388,1726594238157,-151.0,0.00019878,2]
[338405389,1726594238166,-620.00009137,0.00019894,2]
[338405390,1726594238176,-420.0,0.00019968,2]
[338405391,1726594238185,-6017.76153789,0.00020012,2]
[338405392,1726594238194,-154.11553568,0.00020031,2]
[338405393,1726594238206,-223.787,0.00020096,2]
[338405394,1726594238215,-151.0,0.00020098,2]
[338405395,1726594238225,-420.0,0.00020137,2]
[338405396,1726594238235,-6073.64693811,0.00020173,2]
[338405397,1726594238244,-1000.0,0.0002019,2]
[338405398,1726594238254,-153.0,0.00020259,2]
[338405399,1726594238263,-153.0,0.00020259,2]
[338405400,1726594238273,-153.0,0.00020259,2]
[338405401,1726594238282,-153.0,0.00020259,2]
[338405402,1726594238292,-153.0,0.00020259,2]
[338405403,1726594238302,-153.0,0.00020259,2]
[338405404,1726594238312,-6017.7615379,0.00020278,2]
[338405405,1726594238321,-500.0,0.00020311,10]
[338405406,1726594238331,-500.0,0.00020311,10]
[338405407,1726594238340,-500.0,0.00020311,10]
[338405408,1726594238350,-631.85481981,0.00020311,10]
[338405409,1726594238366,-500.0,0.00020311,10]
[338405410,1726594238375,-998.91193843,0.00020311,10]
[338405411,1726594238384,-500.0,0.00020311,10]
[338405412,1726594238393,-800.0,0.00020311,10]
[338405413,1726594238404,-500.0,0.00020311,10]
[338405414,1726594238413,-500.0,0.00020311,10]
[338405415,1726594238422,-500.0,0.00020311,10]
[338405416,1726594238432,-151.0,0.00020319,2]
[338405417,1726594238441,-160.0,0.00020388,5]
[338405418,1726594238451,-1000.0,0.00020449,2]
[338405419,1726594238461,-151.15238579,0.00020469,2]
[338405420,1726594238470,-500.0,0.0002051,30]
[338405421,1726594238479,-500.0,0.0002051,30]
[338405422,1726594238488,-500.0,0.0002051,30]
[338405423,1726594238498,-500.0,0.0002051,30]
[338405424,1726594238508,-500.0,0.0002051,30]
[338405425,1726594238518,-500.0,0.0002051,30]
[338405426,1726594238528,-500.0,0.0002051,30]
[338405427,1726594238537,-500.0,0.0002051,30]
[338405428,1726594238547,-500.0,0.0002051,30]
[338405429,1726594238556,-500.0,0.0002051,30]
[338405430,1726594238565,-500.0,0.0002051,30]
[338405431,1726594238575,-500.0,0.0002051,30]
[338405432,1726594238584,-500.0,0.0002051,30]
[338405433,1726594238593,-500.0,0.0002051,30]
[338405434,1726594238604,-151.0,0.00020539,2]
[338405435,1726594238614,-396.32,0.0002057,3]
[338405436,1726594238624,-198.16,0.0002057,3]
[338405437,1726594238633,-594.52,0.0002057,3]
[338405438,1726594238643,-24648.23805306,0.0002057,3]
[338405439,1726594238658,-26765.59883564,0.0002057,3]
[338405440,1726594238668,-500.0,0.00020573,2]
[338405441,1726594238678,-500.0,0.00020573,2]
[338405442,1726594238688,-500.0,0.00020573,2]
[338405443,1726594238698,-500.0,0.00020573,2]
[338405444,1726594238708,-549.78840157,0.00020579,2]
[338405445,1726594238718,-1293.29471102,0.0002058,3]
[338405446,1726594238730,-46156.13782333,0.0002058,3]
[338405447,1726594238743,-9100.93013359,0.0002058,3]
[338405458,1726594240161,-500.39725523,0.00020573,2]
[338405460,1726594240171,-10342.68619976,0.0002058,3]
[338405461,1726594240180,-500.0,0.00020673,2]
[338405469,1726594240397,-500.0,0.00020673,2]
[338405470,1726594240408,-412.53320827,0.00020673,2]
[338405471,1726594240418,-4702.15553405,0.0002068,3]
[338405504,1726594243106,-1076.0,0.00019835,2]
[338405505,1726594243116,-98125.51824295,0.0002068,3]
[338405506,1726594243125,-151.0,0.0002069,2]
[338405507,1726594243135,-151.0,0.0002069,2]
[338405508,1726594243144,-151.0,0.0002069,2]
[338405509,1726594243154,-151.0,0.0002069,2]
[338405510,1726594243163,-51413.8368887,0.0002069,3]
[338405511,1726594243172,-3366.60579058,0.000207,2]
[338405512,1726594243181,-3366.60579058,0.000207,2]
[338405513,1726594243191,-3366.60579058,0.000207,2]
[338405514,1726594243200,-3366.60579058,0.000207,2]
[338405515,1726594243210,-16156.39334122,0.000207,2]
[338405516,1726594243219,-16156.39334122,0.000207,2]
[338405517,1726594243228,-16156.39334122,0.000207,2]
[338405518,1726594243238,-151.0,0.00020759,2]